[Event "Titled Tuesday Blitz March 28 Late 2023"]
[White "Sokac, Marko"]
[Black "Flores, Diego"]
[WhiteFideId "14531356"]
[BlackFideId "108049"]
[WhiteElo "2355"]
[BlackElo "2606"]
[Result "0-1"]
[Round "10"]
[TimeControl "180+2"]
[Date "2023.03.28"]
[WhiteClock "0:00:06"]
[BlackClock "0:00:04"]

1. e4 {[%clk 0:03:00]}  c5 {[%clk 0:02:57]} 2. a3 {[%clk 0:02:59]}  e6 {[%clk 0:02:54]} 3. b4 {[%clk 0:02:58]}  d5 {[%clk 0:02:55]} 4. exd5 {[%clk 0:02:58]}  exd5 {[%clk 0:02:55]} 5. Nf3 {[%clk 0:02:57]}  Nf6 {[%clk 0:02:35]} 6. Bb5+ {[%clk 0:02:54]}  Nc6 {[%clk 0:02:34]} 7. O-O {[%clk 0:02:52]}  Bd6 {[%clk 0:02:34]} 8. bxc5 {[%clk 0:02:51]}  Bxc5 {[%clk 0:02:34]} 9. d4 {[%clk 0:02:52]}  Bd6 {[%clk 0:02:34]} 10. h3 {[%clk 0:02:48]}  O-O {[%clk 0:02:33]} 11. Re1 {[%clk 0:02:18]}  Ne4 {[%clk 0:02:30]} 12. Bd3 {[%clk 0:02:15]}  Bf5 {[%clk 0:02:27]} 13. c4 {[%clk 0:02:14]}  Qf6 {[%clk 0:02:01]} 14. cxd5 {[%clk 0:02:10]}  Nxd4 {[%clk 0:02:01]} 15. Bxe4 {[%clk 0:02:02]}  Nxf3+ {[%clk 0:01:50]} 16. Qxf3 {[%clk 0:02:02]}  Qxa1 {[%clk 0:01:35]} 17. Bxf5 {[%clk 0:02:02]}  Rfe8 {[%clk 0:01:30]} 18. Rd1 {[%clk 0:01:59]}  Qe5 {[%clk 0:01:29]} 19. g3 {[%clk 0:01:53]}  Rad8 {[%clk 0:01:19]} 20. Nc3 {[%clk 0:01:49]}  Bc5 {[%clk 0:01:17]} 21. Ne4 {[%clk 0:01:45]}  Bd4 {[%clk 0:01:03]} 22. Bxh7+ {[%clk 0:01:40]}  Kf8 {[%clk 0:00:51]} 23. d6 {[%clk 0:01:28]}  Bb6 {[%clk 0:00:33]} 24. Ng5 {[%clk 0:01:21]}  Qf6 {[%clk 0:00:26]} 25. Bc2 {[%clk 0:01:14]}  Qxf3 {[%clk 0:00:20]} 26. Nxf3 {[%clk 0:01:15]}  Re2 {[%clk 0:00:20]} 27. Bg5 {[%clk 0:01:05]}  f6 {[%clk 0:00:17]} 28. Rd2 {[%clk 0:01:05]}  Bxf2+ {[%clk 0:00:14]} 29. Kg2 {[%clk 0:01:04]}  Rxd2 {[%clk 0:00:13]} 30. Bxd2 {[%clk 0:01:05]}  Bc5 {[%clk 0:00:13]} 31. Bf4 {[%clk 0:00:48]}  Bxa3 {[%clk 0:00:13]} 32. Nd4 {[%clk 0:00:46]}  Kg8 {[%clk 0:00:10]} 33. Ne6 {[%clk 0:00:45]}  Rd7 {[%clk 0:00:08]} 34. Ba4 {[%clk 0:00:42]}  Rxd6 {[%clk 0:00:09]} 35. Bxd6 {[%clk 0:00:42]}  Bxd6 {[%clk 0:00:09]} 36. Nd8 {[%clk 0:00:38]}  b6 {[%clk 0:00:09]} 37. Nc6 {[%clk 0:00:39]}  a5 {[%clk 0:00:09]} 38. g4 {[%clk 0:00:32]}  Kf7 {[%clk 0:00:08]} 39. Kf3 {[%clk 0:00:32]}  Ke6 {[%clk 0:00:05]} 40. Ke4 {[%clk 0:00:32]}  Bc5 {[%clk 0:00:05]} 41. Nd4+ {[%clk 0:00:28]}  Bxd4 {[%clk 0:00:03]} 42. Kxd4 {[%clk 0:00:29]}  g5 {[%clk 0:00:03]} 43. Ke4 {[%clk 0:00:21]}  Kd6 {[%clk 0:00:04]} 44. Kf5 {[%clk 0:00:21]}  Kc5 {[%clk 0:00:04]} 45. Kxf6 {[%clk 0:00:21]}  b5 {[%clk 0:00:05]} 46. Bc2 {[%clk 0:00:19]}  a4 {[%clk 0:00:05]} 47. Kxg5 {[%clk 0:00:20]}  a3 {[%clk 0:00:04]} 48. Bb3 {[%clk 0:00:18]}  Kb4 {[%clk 0:00:04]} 49. Ba2 {[%clk 0:00:18]}  Ka4 {[%clk 0:00:03]} 50. h4 {[%clk 0:00:18]}  b4 {[%clk 0:00:04]} 51. h5 {[%clk 0:00:06]}  b3 {[%clk 0:00:04]} 0-1


[Site "https://www.chess.com"]

[Event "Titled Tuesday Blitz March 28 Late 2023"]
[White "Lenaerts, Lennert"]
[Black "Lamard, Guillaume"]
[WhiteFideId "211435"]
[BlackFideId "600261"]
[WhiteElo "2334"]
[BlackElo "2413"]
[Result "0-1"]
[Round "10"]
[TimeControl "180+2"]
[Date "2023.03.28"]
[WhiteClock "0:01:10"]
[BlackClock "0:00:47"]

1. d4 {[%clk 0:03:00]}  Nf6 {[%clk 0:02:59]} 2. c4 {[%clk 0:03:01]}  g6 {[%clk 0:02:59]} 3. Nc3 {[%clk 0:03:01]}  Bg7 {[%clk 0:03:00]} 4. e4 {[%clk 0:03:01]}  d6 {[%clk 0:03:00]} 5. f3 {[%clk 0:03:02]}  O-O {[%clk 0:02:56]} 6. Be3 {[%clk 0:03:02]}  a6 {[%clk 0:02:56]} 7. Nge2 {[%clk 0:03:02]}  b5 {[%clk 0:02:54]} 8. cxb5 {[%clk 0:03:02]}  axb5 {[%clk 0:02:55]} 9. Nxb5 {[%clk 0:03:02]}  c6 {[%clk 0:02:55]} 10. Nbc3 {[%clk 0:03:02]}  Nbd7 {[%clk 0:02:56]} 11. Nc1 {[%clk 0:02:58]}  e5 {[%clk 0:02:52]} 12. Be2 {[%clk 0:02:56]}  exd4 {[%clk 0:02:43]} 13. Bxd4 {[%clk 0:02:57]}  c5 {[%clk 0:02:43]} 14. Be3 {[%clk 0:02:56]}  Ne5 {[%clk 0:02:44]} 15. O-O {[%clk 0:02:55]}  Be6 {[%clk 0:02:44]} 16. b3 {[%clk 0:02:53]}  Qa5 {[%clk 0:02:36]} 17. Qd2 {[%clk 0:02:51]}  Nfd7 {[%clk 0:02:21]} 18. Rb1 {[%clk 0:02:26]}  Qxc3 {[%clk 0:02:01]} 19. Qxc3 {[%clk 0:02:23]}  Nxf3+ {[%clk 0:02:02]} 20. Bxf3 {[%clk 0:02:23]}  Bxc3 {[%clk 0:02:02]} 21. a4 {[%clk 0:02:12]}  Be5 {[%clk 0:01:57]} 22. Nd3 {[%clk 0:02:12]}  Rfb8 {[%clk 0:01:53]} 23. Bd1 {[%clk 0:01:51]}  Rxa4 {[%clk 0:01:37]} 24. Nxe5 {[%clk 0:01:32]}  Nxe5 {[%clk 0:01:36]} 25. bxa4 {[%clk 0:01:33]}  Rxb1 {[%clk 0:01:36]} 26. Be2 {[%clk 0:01:33]}  Rb2 {[%clk 0:01:35]} 27. Bb5 {[%clk 0:01:30]}  Bc4 {[%clk 0:01:19]} 28. Bxc4 {[%clk 0:01:29]}  Nxc4 {[%clk 0:01:19]} 29. Bf4 {[%clk 0:01:30]}  Ra2 {[%clk 0:01:10]} 30. Rd1 {[%clk 0:01:30]}  Rxa4 {[%clk 0:01:10]} 31. h3 {[%clk 0:01:29]}  Kg7 {[%clk 0:01:02]} 32. Kh2 {[%clk 0:01:24]}  Ra6 {[%clk 0:00:58]} 33. Rd5 {[%clk 0:01:23]}  Rc6 {[%clk 0:00:56]} 34. g4 {[%clk 0:01:20]}  Kf6 {[%clk 0:00:56]} 35. Kg3 {[%clk 0:01:19]}  Ke6 {[%clk 0:00:55]} 36. Rd1 {[%clk 0:01:17]}  Ne5 {[%clk 0:00:55]} 37. Kf2 {[%clk 0:01:15]}  c4 {[%clk 0:00:54]} 38. Ke3 {[%clk 0:01:15]}  Rb6 {[%clk 0:00:49]} 39. Kd4 {[%clk 0:01:10]}  Rb3 {[%clk 0:00:47]} 0-1


[Site "https://www.chess.com"]

[Event "Titled Tuesday Blitz March 28 Late 2023"]
[White "Vlassov, Nikolai"]
[Black "Sreyas Payyappat"]
[WhiteFideId "4103360"]
[BlackFideId "46674969"]
[WhiteElo "2324"]
[BlackElo "2083"]
[Result "1-0"]
[Round "10"]
[TimeControl "180+2"]
[Date "2023.03.28"]
[WhiteClock "0:01:26"]
[BlackClock "0:01:28"]

1. e4 {[%clk 0:03:00]}  c6 {[%clk 0:03:00]} 2. d4 {[%clk 0:02:59]}  d5 {[%clk 0:03:00]} 3. e5 {[%clk 0:03:00]}  Bf5 {[%clk 0:03:01]} 4. Nc3 {[%clk 0:03:00]}  e6 {[%clk 0:03:01]} 5. g4 {[%clk 0:03:00]}  Bg6 {[%clk 0:03:00]} 6. Nge2 {[%clk 0:03:01]}  c5 {[%clk 0:02:59]} 7. Be3 {[%clk 0:03:00]}  Nc6 {[%clk 0:02:59]} 8. dxc5 {[%clk 0:03:00]}  Nxe5 {[%clk 0:02:56]} 9. Nf4 {[%clk 0:03:00]}  d4 {[%clk 0:02:53]} 10. Bb5+ {[%clk 0:02:55]}  Ke7 {[%clk 0:02:50]} 11. Nfd5+ {[%clk 0:02:39]}  exd5 {[%clk 0:02:47]} 12. Bxd4 {[%clk 0:02:40]}  f6 {[%clk 0:02:15]} 13. Qe2 {[%clk 0:02:37]}  Be4 {[%clk 0:02:07]} 14. Nxe4 {[%clk 0:02:09]}  dxe4 {[%clk 0:02:08]} 15. O-O-O {[%clk 0:02:09]}  Qd5 {[%clk 0:01:45]} 16. Bxe5 {[%clk 0:02:00]}  Qxe5 {[%clk 0:01:39]} 17. Rd7+ {[%clk 0:01:59]}  Ke8 {[%clk 0:01:37]} 18. Rd5+ {[%clk 0:01:53]}  Kf7 {[%clk 0:01:35]} 19. Rxe5 {[%clk 0:01:52]}  fxe5 {[%clk 0:01:36]} 20. Qc4+ {[%clk 0:01:51]}  Kf6 {[%clk 0:01:36]} 21. Bd7 {[%clk 0:01:46]}  Nh6 {[%clk 0:01:33]} 22. Qe6+ {[%clk 0:01:34]}  Kg5 {[%clk 0:01:32]} 23. Qxe5+ {[%clk 0:01:34]}  Kg6 {[%clk 0:01:31]} 24. Bf5+ {[%clk 0:01:28]}  Kg5 {[%clk 0:01:28]} 25. h4# {[%clk 0:01:26]} 1-0


[Site "https://www.chess.com"]

[Event "Titled Tuesday Blitz March 28 Late 2023"]
[White "cryptoguru02"]
[Black "Thomforde-Toates, Noah"]
[BlackFideId "30951992"]
[WhiteElo "2532"]
[BlackElo "2660"]
[Result "0-1"]
[Round "10"]
[TimeControl "180+2"]
[Date "2023.03.28"]
[WhiteClock "0:00:03"]
[BlackClock "0:00:08"]

1. d4 {[%clk 0:03:00]}  Nf6 {[%clk 0:02:58]} 2. c4 {[%clk 0:03:01]}  d6 {[%clk 0:02:57]} 3. Nc3 {[%clk 0:03:01]}  g6 {[%clk 0:02:57]} 4. e4 {[%clk 0:03:01]}  Bg7 {[%clk 0:02:58]} 5. Be2 {[%clk 0:03:01]}  O-O {[%clk 0:02:56]} 6. Be3 {[%clk 0:03:02]}  c5 {[%clk 0:02:56]} 7. d5 {[%clk 0:03:01]}  e6 {[%clk 0:02:56]} 8. Nf3 {[%clk 0:03:01]}  exd5 {[%clk 0:02:56]} 9. cxd5 {[%clk 0:03:02]}  b5 {[%clk 0:02:55]} 10. e5 {[%clk 0:03:02]}  dxe5 {[%clk 0:02:54]} 11. Bxc5 {[%clk 0:03:02]}  Re8 {[%clk 0:02:53]} 12. Bxb5 {[%clk 0:03:02]}  e4 {[%clk 0:02:51]} 13. Nd2 {[%clk 0:02:59]}  Nbd7 {[%clk 0:02:40]} 14. Be3 {[%clk 0:02:57]}  a6 {[%clk 0:02:37]} 15. Be2 {[%clk 0:02:54]}  Nb6 {[%clk 0:02:32]} 16. Nc4 {[%clk 0:02:44]}  Nbxd5 {[%clk 0:02:26]} 17. Bd4 {[%clk 0:02:41]}  Be6 {[%clk 0:02:23]} 18. O-O {[%clk 0:02:36]}  Nf4 {[%clk 0:02:20]} 19. b3 {[%clk 0:02:05]}  Rc8 {[%clk 0:02:11]} 20. Rc1 {[%clk 0:01:51]}  Nxe2+ {[%clk 0:01:55]} 21. Nxe2 {[%clk 0:01:51]}  Bxc4 {[%clk 0:01:54]} 22. bxc4 {[%clk 0:01:47]}  Qa5 {[%clk 0:01:52]} 23. Qb3 {[%clk 0:01:37]}  Rb8 {[%clk 0:01:43]} 24. Qc2 {[%clk 0:01:25]}  Qh5 {[%clk 0:01:38]} 25. h3 {[%clk 0:01:14]}  Qg5 {[%clk 0:01:25]} 26. Ng3 {[%clk 0:00:57]}  e3 {[%clk 0:01:04]} 27. Bxf6 {[%clk 0:00:32]}  Qxf6 {[%clk 0:00:56]} 28. fxe3 {[%clk 0:00:20]}  Qe5 {[%clk 0:00:47]} 29. Rf3 {[%clk 0:00:19]}  Rb2 {[%clk 0:00:45]} 30. Qd3 {[%clk 0:00:19]}  Rxa2 {[%clk 0:00:34]} 31. Qd5 {[%clk 0:00:19]}  Re7 {[%clk 0:00:25]} 32. Qd8+ {[%clk 0:00:15]}  Re8 {[%clk 0:00:25]} 33. Qd5 {[%clk 0:00:14]}  Qxd5 {[%clk 0:00:21]} 34. cxd5 {[%clk 0:00:15]}  Be5 {[%clk 0:00:21]} 35. Ne4 {[%clk 0:00:11]}  f5 {[%clk 0:00:17]} 36. Nc5 {[%clk 0:00:09]}  a5 {[%clk 0:00:16]} 37. Rf2 {[%clk 0:00:06]}  Ra3 {[%clk 0:00:13]} 38. Re2 {[%clk 0:00:04]}  Bd6 {[%clk 0:00:12]} 39. Ne6 {[%clk 0:00:04]}  a4 {[%clk 0:00:11]} 40. Kf2 {[%clk 0:00:03]}  Rd3 {[%clk 0:00:11]} 41. Rc6 {[%clk 0:00:03]}  Rxd5 {[%clk 0:00:11]} 42. Nc7 {[%clk 0:00:03]}  Rc8 {[%clk 0:00:08]} 0-1


[Site "https://www.chess.com"]

[Event "Titled Tuesday Blitz March 28 Late 2023"]
[White "Papayan, Oleg"]
[Black "Kavutskiy, Konstantin"]
[WhiteFideId "4193911"]
[BlackFideId "2026384"]
[WhiteElo "2153"]
[BlackElo "2369"]
[Result "0-1"]
[Round "10"]
[TimeControl "180+2"]
[Date "2023.03.28"]
[WhiteClock "0:00:01"]
[BlackClock "0:00:38"]

1. e4 {[%clk 0:03:00]}  c5 {[%clk 0:02:59]} 2. Nf3 {[%clk 0:03:01]}  Nc6 {[%clk 0:02:58]} 3. Bb5 {[%clk 0:03:01]}  g6 {[%clk 0:02:58]} 4. Bxc6 {[%clk 0:03:01]}  dxc6 {[%clk 0:02:58]} 5. d3 {[%clk 0:03:00]}  Qc7 {[%clk 0:02:56]} 6. Be3 {[%clk 0:02:59]}  e5 {[%clk 0:02:55]} 7. Nc3 {[%clk 0:02:56]}  Nf6 {[%clk 0:02:52]} 8. h3 {[%clk 0:02:56]}  Bd6 {[%clk 0:02:49]} 9. Bh6 {[%clk 0:02:53]}  Rg8 {[%clk 0:02:44]} 10. a4 {[%clk 0:02:51]}  a5 {[%clk 0:02:40]} 11. b3 {[%clk 0:02:50]}  Nd7 {[%clk 0:02:36]} 12. Qd2 {[%clk 0:02:08]}  f6 {[%clk 0:02:35]} 13. h4 {[%clk 0:02:01]}  Nf8 {[%clk 0:02:34]} 14. Be3 {[%clk 0:01:59]}  Ne6 {[%clk 0:02:32]} 15. h5 {[%clk 0:01:59]}  g5 {[%clk 0:02:31]} 16. Ne2 {[%clk 0:01:53]}  Nf4 {[%clk 0:02:23]} 17. Bxf4 {[%clk 0:01:15]}  exf4 {[%clk 0:02:22]} 18. Qc3 {[%clk 0:01:06]}  Kf7 {[%clk 0:02:14]} 19. O-O-O {[%clk 0:00:55]}  b5 {[%clk 0:01:58]} 20. d4 {[%clk 0:00:51]}  b4 {[%clk 0:01:52]} 21. Qc4+ {[%clk 0:00:49]}  Be6 {[%clk 0:01:52]} 22. d5 {[%clk 0:00:50]}  cxd5 {[%clk 0:01:49]} 23. exd5 {[%clk 0:00:50]}  Bf5 {[%clk 0:01:44]} 24. Kb1 {[%clk 0:00:33]}  Rge8 {[%clk 0:01:43]} 25. Nc1 {[%clk 0:00:33]}  Re4 {[%clk 0:01:40]} 26. Qb5 {[%clk 0:00:33]}  c4 {[%clk 0:01:36]} 27. Nd2 {[%clk 0:00:28]}  cxb3 {[%clk 0:01:32]} 28. Ncxb3 {[%clk 0:00:20]}  Qxc2+ {[%clk 0:01:03]} 29. Kxc2 {[%clk 0:00:20]}  Rc4+ {[%clk 0:01:03]} 30. Kb2 {[%clk 0:00:17]}  Rc2+ {[%clk 0:00:59]} 31. Kb1 {[%clk 0:00:11]}  Rxd2+ {[%clk 0:00:56]} 32. Kc1 {[%clk 0:00:01]}  Rc2+ {[%clk 0:00:56]} 33. Kb1 {[%clk 0:00:02]}  Rxf2+ {[%clk 0:00:39]} 34. Kc1 {[%clk 0:00:01]}  Rc8+ {[%clk 0:00:38]} 0-1


[Site "https://www.chess.com"]

[Event "Titled Tuesday Blitz March 28 Late 2023"]
[White "Freitag, Manfred"]
[Black "WindWhistler11"]
[WhiteFideId "1602004"]
[WhiteElo "2275"]
[BlackElo "2477"]
[Result "1-0"]
[Round "10"]
[TimeControl "180+2"]
[Date "2023.03.28"]
[WhiteClock "0:01:12"]
[BlackClock "0:00:01"]

1. e4 {[%clk 0:03:00]}  e6 {[%clk 0:02:59]} 2. d4 {[%clk 0:03:00]}  d5 {[%clk 0:02:59]} 3. e5 {[%clk 0:03:00]}  c5 {[%clk 0:02:58]} 4. c3 {[%clk 0:03:01]}  Nc6 {[%clk 0:02:59]} 5. Nf3 {[%clk 0:03:02]}  Bd7 {[%clk 0:02:59]} 6. Bd3 {[%clk 0:03:02]}  cxd4 {[%clk 0:02:55]} 7. O-O {[%clk 0:03:02]}  dxc3 {[%clk 0:02:53]} 8. Nxc3 {[%clk 0:03:03]}  Bc5 {[%clk 0:02:47]} 9. Na4 {[%clk 0:03:00]}  Be7 {[%clk 0:02:43]} 10. Re1 {[%clk 0:03:00]}  Nh6 {[%clk 0:02:28]} 11. Nc3 {[%clk 0:02:51]}  a6 {[%clk 0:02:16]} 12. Bb1 {[%clk 0:02:49]}  Ng8 {[%clk 0:02:07]} 13. a3 {[%clk 0:02:46]}  Bc5 {[%clk 0:02:05]} 14. b4 {[%clk 0:02:41]}  Ba7 {[%clk 0:02:04]} 15. Ng5 {[%clk 0:02:39]}  Nh6 {[%clk 0:01:47]} 16. Nxh7 {[%clk 0:02:33]}  Qh4 {[%clk 0:01:43]} 17. Bg5 {[%clk 0:02:24]}  Qxf2+ {[%clk 0:01:16]} 18. Kh1 {[%clk 0:02:24]}  Nf5 {[%clk 0:01:16]} 19. Rf1 {[%clk 0:02:19]}  Qd4 {[%clk 0:01:16]} 20. Bxf5 {[%clk 0:02:15]}  Qxc3 {[%clk 0:00:54]} 21. Bd3 {[%clk 0:02:01]}  Nxe5 {[%clk 0:00:46]} 22. Bc2 {[%clk 0:01:59]}  Ng6 {[%clk 0:00:33]} 23. Nf6+ {[%clk 0:01:56]}  gxf6 {[%clk 0:00:24]} 24. Bxf6 {[%clk 0:01:57]}  Qc7 {[%clk 0:00:12]} 25. Bxh8 {[%clk 0:01:52]}  Nxh8 {[%clk 0:00:13]} 26. Rc1 {[%clk 0:01:49]}  Bc6 {[%clk 0:00:12]} 27. a4 {[%clk 0:01:45]}  Bb8 {[%clk 0:00:10]} 28. Qh5 {[%clk 0:01:42]}  Qxh2+ {[%clk 0:00:10]} 29. Qxh2 {[%clk 0:01:41]}  Bxh2 {[%clk 0:00:11]} 30. Kxh2 {[%clk 0:01:42]}  Ke7 {[%clk 0:00:10]} 31. Rb1 {[%clk 0:01:34]}  d4 {[%clk 0:00:08]} 32. b5 {[%clk 0:01:34]}  axb5 {[%clk 0:00:08]} 33. axb5 {[%clk 0:01:35]}  Bd5 {[%clk 0:00:09]} 34. Rfc1 {[%clk 0:01:34]}  Ra2 {[%clk 0:00:08]} 35. Bb3 {[%clk 0:01:32]}  Rxg2+ {[%clk 0:00:07]} 36. Kh3 {[%clk 0:01:32]}  Rg5 {[%clk 0:00:06]} 37. Bxd5 {[%clk 0:01:32]}  Rxd5 {[%clk 0:00:07]} 38. Rc7+ {[%clk 0:01:32]}  Kf6 {[%clk 0:00:07]} 39. Rxb7 {[%clk 0:01:32]}  Ng6 {[%clk 0:00:07]} 40. b6 {[%clk 0:01:31]}  d3 {[%clk 0:00:05]} 41. Rc7 {[%clk 0:01:30]}  Nf4+ {[%clk 0:00:05]} 42. Kg4 {[%clk 0:01:29]}  Rd4 {[%clk 0:00:05]} 43. Kf3 {[%clk 0:01:27]}  Nd5 {[%clk 0:00:05]} 44. Rd7 {[%clk 0:01:27]}  d2 {[%clk 0:00:04]} 45. b7 {[%clk 0:01:26]}  d1=Q+ {[%clk 0:00:03]} 46. Rxd1 {[%clk 0:01:26]}  Rxd1 {[%clk 0:00:04]} 47. b8=Q {[%clk 0:01:26]}  Rd3+ {[%clk 0:00:04]} 48. Kg2 {[%clk 0:01:25]}  Ne3+ {[%clk 0:00:03]} 49. Kf3 {[%clk 0:01:25]}  Rxd7 {[%clk 0:00:02]} 50. Kxe3 {[%clk 0:01:26]}  Rd5 {[%clk 0:00:02]} 51. Qb2+ {[%clk 0:01:23]}  Kf5 {[%clk 0:00:02]} 52. Qg7 {[%clk 0:01:20]}  f6 {[%clk 0:00:02]} 53. Qh7+ {[%clk 0:01:18]}  Ke5 {[%clk 0:00:02]} 54. Qh2+ {[%clk 0:01:18]}  Kf5 {[%clk 0:00:02]} 55. Qh3+ {[%clk 0:01:16]}  Ke5 {[%clk 0:00:01]} 56. Qh5+ {[%clk 0:01:15]}  Kd6 {[%clk 0:00:02]} 57. Qf7 {[%clk 0:01:15]}  Re5+ {[%clk 0:00:02]} 58. Kd4 {[%clk 0:01:15]}  Rd5+ {[%clk 0:00:02]} 59. Kc4 {[%clk 0:01:16]}  Rf5 {[%clk 0:00:02]} 60. Qg6 {[%clk 0:01:12]}  Rf4+ {[%clk 0:00:02]} 61. Kd3 {[%clk 0:01:12]}  e5 {[%clk 0:00:01]} 62. Ke3 {[%clk 0:01:12]} 1-0


[Site "https://www.chess.com"]

[Event "Titled Tuesday Blitz March 28 Late 2023"]
[White "Poliakova, Varvara"]
[Black "Romero Pallares, Daniel"]
[WhiteFideId "13518313"]
[BlackFideId "32025637"]
[WhiteElo "2075"]
[BlackElo "2195"]
[Result "1-0"]
[Round "10"]
[TimeControl "180+2"]
[Date "2023.03.28"]
[WhiteClock "0:01:08"]
[BlackClock "0:00:01"]

1. e4 {[%clk 0:03:00]}  g6 {[%clk 0:02:55]} 2. d4 {[%clk 0:02:59]}  Bg7 {[%clk 0:02:55]} 3. f4 {[%clk 0:02:59]}  d5 {[%clk 0:02:52]} 4. e5 {[%clk 0:02:58]}  c5 {[%clk 0:02:53]} 5. c3 {[%clk 0:02:58]}  cxd4 {[%clk 0:02:53]} 6. cxd4 {[%clk 0:02:59]}  Nc6 {[%clk 0:02:53]} 7. Nf3 {[%clk 0:02:57]}  Bg4 {[%clk 0:02:50]} 8. Nc3 {[%clk 0:02:58]}  Nh6 {[%clk 0:02:50]} 9. Bb5 {[%clk 0:02:55]}  O-O {[%clk 0:02:49]} 10. Bxc6 {[%clk 0:02:53]}  bxc6 {[%clk 0:02:50]} 11. O-O {[%clk 0:02:54]}  f6 {[%clk 0:02:50]} 12. Be3 {[%clk 0:02:51]}  Nf5 {[%clk 0:02:47]} 13. Bf2 {[%clk 0:02:51]}  Bxf3 {[%clk 0:02:46]} 14. Qxf3 {[%clk 0:02:52]}  fxe5 {[%clk 0:02:46]} 15. dxe5 {[%clk 0:02:50]}  e6 {[%clk 0:02:38]} 16. Rac1 {[%clk 0:02:48]}  Ne7 {[%clk 0:02:27]} 17. Na4 {[%clk 0:02:44]}  Bxe5 {[%clk 0:02:19]} 18. Qh3 {[%clk 0:02:41]}  Bg7 {[%clk 0:02:00]} 19. Qxe6+ {[%clk 0:02:38]}  Kh8 {[%clk 0:01:59]} 20. Bh4 {[%clk 0:02:36]}  Re8 {[%clk 0:01:52]} 21. Rfe1 {[%clk 0:02:34]}  Qa5 {[%clk 0:01:45]} 22. Nc5 {[%clk 0:02:26]}  Ng8 {[%clk 0:01:30]} 23. Qxe8 {[%clk 0:02:16]}  Rxe8 {[%clk 0:01:31]} 24. Rxe8 {[%clk 0:02:16]}  Qd2 {[%clk 0:01:28]} 25. Nb3 {[%clk 0:02:13]}  Qxf4 {[%clk 0:01:21]} 26. Bf2 {[%clk 0:02:10]}  Bxb2 {[%clk 0:01:17]} 27. Rce1 {[%clk 0:02:09]}  Bg7 {[%clk 0:01:14]} 28. Rc8 {[%clk 0:02:06]}  Qf5 {[%clk 0:01:00]} 29. Ree8 {[%clk 0:02:04]}  Qb1+ {[%clk 0:00:49]} 30. Be1 {[%clk 0:02:03]}  Bf8 {[%clk 0:00:50]} 31. Kf2 {[%clk 0:01:53]}  Qf5+ {[%clk 0:00:45]} 32. Kg1 {[%clk 0:01:51]}  Qb1 {[%clk 0:00:39]} 33. Kf2 {[%clk 0:01:50]}  Qf5+ {[%clk 0:00:39]} 34. Ke2 {[%clk 0:01:50]}  Nf6 {[%clk 0:00:34]} 35. Rxf8+ {[%clk 0:01:47]}  Kg7 {[%clk 0:00:35]} 36. Kd1 {[%clk 0:01:41]}  Qd3+ {[%clk 0:00:33]} 37. Bd2 {[%clk 0:01:39]}  Ne4 {[%clk 0:00:33]} 38. Rg8+ {[%clk 0:01:37]}  Kf7 {[%clk 0:00:33]} 39. Rcf8+ {[%clk 0:01:32]}  Ke7 {[%clk 0:00:34]} 40. Re8+ {[%clk 0:01:30]}  Kd7 {[%clk 0:00:34]} 41. Rd8+ {[%clk 0:01:26]}  Ke7 {[%clk 0:00:33]} 42. Rge8+ {[%clk 0:01:25]}  Kf7 {[%clk 0:00:31]} 43. Kc1 {[%clk 0:01:22]}  c5 {[%clk 0:00:23]} 44. Rf8+ {[%clk 0:01:16]}  Ke6 {[%clk 0:00:22]} 45. Rde8+ {[%clk 0:01:15]}  Kd7 {[%clk 0:00:20]} 46. Rxe4 {[%clk 0:01:14]}  Kc6 {[%clk 0:00:05]} 47. Re6+ {[%clk 0:01:13]}  Kb5 {[%clk 0:00:04]} 48. a4+ {[%clk 0:01:12]}  Kc4 {[%clk 0:00:02]} 49. Rf4+ {[%clk 0:01:10]}  Kxb3 {[%clk 0:00:02]} 50. Rf3 {[%clk 0:01:08]}  c4 {[%clk 0:00:01]} 51. Rxd3+ {[%clk 0:01:08]} 1-0


[Site "https://www.chess.com"]

[Event "Titled Tuesday Blitz March 28 Late 2023"]
[White "Gokerkan, Cem Kaan"]
[Black "Fernandez Sanchez, Mario Andres"]
[WhiteFideId "6336760"]
[BlackFideId "6501621"]
[WhiteElo "2365"]
[BlackElo "2050"]
[Result "1-0"]
[Round "10"]
[TimeControl "180+2"]
[Date "2023.03.28"]
[WhiteClock "0:00:05"]
[BlackClock "0:00:23"]

1. f3 {[%clk 0:02:37]}  d5 {[%clk 0:02:59]} 2. Nh3 {[%clk 0:02:38]}  Nf6 {[%clk 0:02:55]} 3. Nf2 {[%clk 0:02:38]}  g6 {[%clk 0:02:53]} 4. g3 {[%clk 0:02:38]}  Bg7 {[%clk 0:02:53]} 5. Bg2 {[%clk 0:02:39]}  O-O {[%clk 0:02:53]} 6. e3 {[%clk 0:02:37]}  e5 {[%clk 0:02:51]} 7. O-O {[%clk 0:02:37]}  c6 {[%clk 0:02:51]} 8. d3 {[%clk 0:02:35]}  Nbd7 {[%clk 0:02:49]} 9. Nd2 {[%clk 0:02:27]}  a5 {[%clk 0:02:48]} 10. f4 {[%clk 0:02:18]}  Qe7 {[%clk 0:02:39]} 11. a4 {[%clk 0:02:08]}  Re8 {[%clk 0:02:28]} 12. Nf3 {[%clk 0:02:03]}  h5 {[%clk 0:02:28]} 13. Bd2 {[%clk 0:01:55]}  Ng4 {[%clk 0:02:18]} 14. Nxg4 {[%clk 0:01:51]}  hxg4 {[%clk 0:02:19]} 15. Nxe5 {[%clk 0:01:27]}  Nxe5 {[%clk 0:02:20]} 16. fxe5 {[%clk 0:01:28]}  Qxe5 {[%clk 0:02:20]} 17. Kh1 {[%clk 0:01:21]}  Qxb2 {[%clk 0:02:14]} 18. Rb1 {[%clk 0:01:20]}  Qa3 {[%clk 0:02:15]} 19. Rf4 {[%clk 0:00:55]}  Bh6 {[%clk 0:01:58]} 20. Rf2 {[%clk 0:00:55]}  Bxe3 {[%clk 0:01:53]} 21. Re2 {[%clk 0:00:35]}  d4 {[%clk 0:01:53]} 22. Qe1 {[%clk 0:00:35]}  Qxa4 {[%clk 0:01:45]} 23. Bxe3 {[%clk 0:00:35]}  dxe3 {[%clk 0:01:45]} 24. Rxe3 {[%clk 0:00:36]}  Rxe3 {[%clk 0:01:39]} 25. Qxe3 {[%clk 0:00:37]}  Be6 {[%clk 0:01:40]} 26. c4 {[%clk 0:00:31]}  b5 {[%clk 0:01:29]} 27. cxb5 {[%clk 0:00:29]}  cxb5 {[%clk 0:01:30]} 28. Bxa8 {[%clk 0:00:29]}  b4 {[%clk 0:01:22]} 29. d4 {[%clk 0:00:16]}  Qa2 {[%clk 0:01:23]} 30. Re1 {[%clk 0:00:13]}  a4 {[%clk 0:01:16]} 31. d5 {[%clk 0:00:12]}  Bxd5+ {[%clk 0:01:14]} 32. Bxd5 {[%clk 0:00:13]}  Qxd5+ {[%clk 0:01:15]} 33. Qe4 {[%clk 0:00:14]}  Qd2 {[%clk 0:00:57]} 34. Rf1 {[%clk 0:00:09]}  Qd7 {[%clk 0:00:44]} 35. Qxb4 {[%clk 0:00:08]}  Kh7 {[%clk 0:00:38]} 36. Qc4 {[%clk 0:00:06]}  Kg7 {[%clk 0:00:37]} 37. Kg1 {[%clk 0:00:05]}  a3 {[%clk 0:00:37]} 38. Qc3+ {[%clk 0:00:05]}  Kh6 {[%clk 0:00:34]} 39. Qxa3 {[%clk 0:00:05]}  Qd4+ {[%clk 0:00:33]} 40. Kg2 {[%clk 0:00:04]}  Qe4+ {[%clk 0:00:31]} 41. Kf2 {[%clk 0:00:04]}  f5 {[%clk 0:00:29]} 42. Qe3+ {[%clk 0:00:03]}  Qxe3+ {[%clk 0:00:27]} 43. Kxe3 {[%clk 0:00:04]}  Kh5 {[%clk 0:00:27]} 44. Kf4 {[%clk 0:00:05]}  Kh6 {[%clk 0:00:25]} 45. Re1 {[%clk 0:00:05]}  Kh5 {[%clk 0:00:24]} 46. Re8 {[%clk 0:00:05]}  Kh6 {[%clk 0:00:23]} 47. Ra8 {[%clk 0:00:05]} 1-0


[Site "https://www.chess.com"]